bitfinex-derivatives/quotes_SOLF0:USTF0_20220108
["timestamp","ask_amount","ask_price","bid_price","bid_amount"]
[1641669943383,7.18366739,133.64,133.56,6.12210983]
[1641669943583,7.18366739,133.64,133.57,27.66479]
[1641669943784,7.18366739,133.64,133.57,31.91589983]
[1641669944185,7.18366739,133.64,133.58,4.25110983]
[1641669945585,35.15038024,133.67,133.58,4.25110983]
[1641669945785,27.66479,133.67,133.58,4.25110983]
[1641669946986,37.64996456,133.67,133.58,4.25110983]
[1641669947187,5.98660954,133.64,133.58,4.25110983]
[1641669947587,5.98680806,133.63,133.58,4.25110983]
[1641669948188,4.0,133.59,133.51,1.871]
[1641669948389,9.98805388,133.6,133.5,112.55225125]
[1641669948590,5.9898194,133.56,133.5,41.91505125]
[1641669948789,7.18504071,133.62,133.5,41.91505125]
[1641669948989,7.18504071,133.62,133.51,1.871]
[1641669949192,7.18504071,133.62,133.52,31.66479]
[1641669949389,1.33367949,133.61,133.53,4.25321635]
[1641669949590,0.01271501,133.62,133.56,27.66479]
[1641669949990,16.10514076,133.66,133.56,27.66479]
[1641669950990,0.85060246,133.65,133.57,4.25301232]
[1641669951591,4.0,133.64,133.57,4.25301232]
[1641669951792,4.0,133.64,133.52,27.66479]
[1641669952192,4.0,133.59,133.53,4.25353039]
[1641669952392,4.0,133.58,133.53,4.25353039]
[1641669952593,4.0,133.59,133.53,4.25353039]
[1641669952793,0.85060246,133.58,133.51,4.25353039]
[1641669953194,0.85060246,133.61,133.5,4.25353039]
[1641669953393,0.85060246,133.61,133.5,6.12453039]
[1641669953593,0.85060246,133.61,133.58,27.66479]
[1641669953993,29.9378789,133.72,133.58,38.44879]
[1641669954296,0.8504557,133.65,133.59,6.12353039]
[1641669954694,4.8504557,133.65,133.59,6.12353039]
[1641669954895,4.0,133.65,133.52,1.87]
[1641669955294,6.8372182,133.64,133.53,4.25318771]
[1641669955495,6.8372182,133.64,133.54,4.0]
[1641669955794,0.85063754,133.63,133.57,27.66479]
[1641669956195,0.85063754,133.63,133.58,4.25318771]
[1641669956595,5.9864478,133.64,133.55,27.66479]
[1641669956799,5.98689751,133.63,133.55,27.66479]
[1641669957197,6.83753505,133.63,133.56,4.25322151]
[1641669957595,0.85063754,133.62,133.56,4.25322151]
[1641669957797,28.51542754,133.62,133.56,4.25322151]
[1641669957996,0.85063754,133.62,133.56,4.25322151]
[1641669958596,0.85063754,133.64,133.56,4.25322151]
[1641669960299,0.85063754,133.64,133.58,4.0]
[1641669960499,16.09857327,133.72,133.59,7.48166991]
[1641669960699,8.61550371,133.72,133.6,1.87]
[1641669960899,8.61550371,133.72,133.62,7.47999102]
[1641669961104,8.61550371,133.72,133.63,1.87]
[1641669961600,6.776,133.74,133.63,5.87]
[1641669961802,0.85015714,133.71,133.65,27.66479]
[1641669962000,0.85015714,133.71,133.65,29.53479]
[1641669962200,0.85015714,133.73,133.69,4.0]
[1641669962401,0.85015714,133.73,133.7,1.869]
[1641669962600,27.66479,133.77,133.72,4.0]
[1641669962802,27.66479,133.79,133.73,5.869]
[1641669963000,10.32794038,133.86,133.74,4.0]
[1641669963303,4.0,133.92,133.78,7.47104968]
[1641669963500,26.97425125,133.81,133.78,7.47104968]
[1641669963701,26.97425125,133.81,133.79,4.0]
[1641669963902,152.02155391,133.93,133.79,4.0]
[1641669964102,0.84953164,133.8,133.79,5.867]
[1641669964304,7.47104968,133.93,133.79,5.867]
[1641669964503,13.44433294,133.93,133.83,4.0]
[1641669964803,5.97328326,133.93,133.83,5.938]
[1641669965002,25.0177408,133.94,133.85,7.46714456]
[1641669965203,4.0,133.93,133.83,7.805]
[1641669965404,0.84926143,133.92,133.83,5.938]
[1641669965602,0.84926143,133.92,133.84,4.0]
[1641669965603,5.24992383,133.89,133.84,4.0]
[1641669965902,3.25348355,133.92,133.88,27.66479]
[1641669966102,3.25348355,133.92,133.89,9.33219354]
[1641669966303,3.25348355,133.92,133.89,13.33219354]
[1641669966503,3.25348355,133.92,133.9,4.0]
[1641669966703,0.84926143,133.91,133.89,9.33219354]
[1641669966905,0.84926143,133.91,133.9,4.0]
[1641669967104,5.96897426,134.03,133.9,13.32952204]
[1641669967304,20.05611735,134.07,133.9,13.32952204]
[1641669967504,0.84873699,134.01,133.9,9.32952204]
[1641669967804,0.84873699,134.01,133.95,27.66479]
[1641669968006,27.66479,134.05,133.95,27.66479]
[1641669968204,31.66479,134.05,133.95,27.66479]
[1641669968404,27.66479,134.05,133.95,27.66479]
[1641669968603,21.21562702,134.04,133.95,27.66479]
[1641669968804,25.21562702,134.04,133.95,27.66479]
[1641669969005,4.0,134.03,133.95,27.66479]
[1641669969206,27.18450762,134.03,133.95,27.66479]
[1641669969905,27.66479,134.05,133.95,27.66479]
[1641669970706,4.0,133.98,133.91,1.865]
[1641669970905,11.46770219,133.99,133.88,1.866]
[1641669971106,5.97099808,133.99,133.88,1.866]
[1641669971305,5.97099808,133.99,133.87,7.46602957]
[1641669971505,5.97099808,133.99,133.88,1.866]
[1641669971706,33.63578808,133.99,133.9,27.66479]
[1641669972109,33.6355457,133.99,133.9,27.66479]
[1641669973107,4.0,133.96,133.9,27.66479]
[1641669973308,4.0,133.94,133.88,27.66479]
[1641669973508,4.0,133.94,133.85,7.46714456]
[1641669973808,4.0,133.91,133.86,27.66479]
[1641669974010,4.0,133.91,133.84,27.66479]
[1641669974209,13.44435406,133.93,133.8,66.0743]
[1641669974410,4.0,133.86,133.8,66.0743]
[1641669974710,4.0,133.86,133.78,7.47104968]
[1641669975508,4.0,133.85,133.78,7.47104968]
[1641669975709,4.0,133.84,133.77,27.66479]
[1641669975909,4.0,133.82,133.77,27.66479]
[1641669976110,4.0,133.83,133.77,27.66479]
[1641669976310,5.97736868,133.84,133.75,27.66479]
[1641669976509,7.47272456,133.9,133.79,4.0]
[1641669976709,4.0,133.91,133.81,4.0]
[1641669976909,4.0,133.91,133.82,7.46909661]
[1641669977109,4.0,133.91,133.81,1.867]
[1641669977312,4.0,133.9,133.81,1.867]
[1641669977509,4.0,133.89,133.79,7.47077061]
[1641669977709,4.0,133.89,133.8,27.66479]
[1641669978511,45.11128659,133.91,133.8,27.66479]
[1641669978711,37.63912041,133.91,133.8,27.66479]
[1641669978911,5.97433041,133.91,133.8,27.66479]
[1641669979111,73.8501,133.95,133.82,7.46881769]
[1641669979311,11.22,133.95,133.83,1.867]
[1641669979511,7.1663803,133.96,133.89,4.0]
[1641669979712,11.1,133.99,133.95,27.66479]
[1641669980012,27.66479,134.03,133.95,27.66479]
[1641669980610,31.66479,134.03,133.95,27.66479]
[1641669980810,31.66479,134.03,133.94,27.66479]
[1641669980811,27.66479,134.03,133.94,27.66479]
[1641669981011,9.9695679,134.02,133.89,1.865]
[1641669981212,4.0,134.01,133.89,1.865]
[1641669981417,4.0,134.01,133.88,75.45345087]
[1641669981614,5.9695679,134.02,133.91,4.0]
[1641669981815,37.41415437,134.09,133.98,27.66479]
[1641669982016,37.39174625,134.09,133.98,27.66479]
[1641669982415,21.75009456,134.09,133.98,27.66479]
[1641669982816,10.31009456,134.09,133.98,29.52979]
[1641669983017,7.46101619,134.11,133.98,33.52979]
[1641669983318,15.64165169,134.13,134.01,4.0]
[1641669983516,15.64165169,134.13,134.04,4.0]
[1641669983718,27.66479,134.15,134.08,27.66479]
[1641669983919,15.64165169,134.16,134.09,1.864]
[1641669984120,15.64165169,134.16,134.08,34.66779]
[1641669984317,15.64165169,134.16,134.09,1.864]
[1641669984518,15.64165169,134.16,134.11,4.0]
[1641669984717,15.64165169,134.16,134.11,5.863]
[1641669984918,5.169e-05,134.16,134.12,11.45212013]
[1641669985121,57.63986858,134.28,134.14,7.45100961]
[1641669985317,4.0,134.27,134.14,7.45100961]
[1641669985518,57.63986858,134.28,134.16,7.44989943]
[1641669985720,41.28521209,134.28,134.25,27.66479]
[1641669985919,41.28521209,134.28,134.25,6.48]
[1641669986820,41.28521209,134.34,134.26,7.44435346]
[1641669987022,41.28521209,134.34,134.29,7.44269128]
[1641669987219,103.19301402,134.42,134.26,4.0]
[1641669987423,103.19301402,134.42,134.3,4.0]
[1641669987622,103.19301402,134.42,134.37,7.43853907]
[1641669987823,103.19301402,134.42,134.41,27.66479]
[1641669988023,103.19301402,134.42,134.35,5.86]
[1641669988221,11.13897177,134.48,134.36,4.0]
[1641669988421,7.13897177,134.48,134.37,9.29726242]
[1641669988622,39.10305242,134.52,134.37,9.29726242]
[1641669989022,4.0,134.46,134.37,9.29726242]
[1641669989223,7.44102984,134.47,134.35,1.859]
[1641669989422,4.0,134.44,134.33,1.859]
[1641669989724,4.0,134.43,134.35,27.66479]
[1641669989924,4.0,134.42,134.33,27.66479]
[1641669990126,35.10775826,134.44,134.33,27.66479]
[1641669990326,4.0,134.43,134.33,27.66479]
[1641669990527,4.0,134.41,134.33,27.66479]
[1641669990925,7.44379932,134.42,134.33,27.66479]
[1641669991127,5.9514103,134.43,134.33,27.66479]
[1641669991729,4.0,134.5,134.35,4.0]
[1641669992029,33.61171855,134.53,134.42,55.32958]
[1641669992229,33.61171855,134.53,134.44,7.43466786]
[1641669992431,8.56111636,134.57,134.43,4.0]
[1641669992631,8.56111636,134.57,134.48,7.43245754]
[1641669993434,4.0,134.62,134.48,7.43245754]
[1641669993636,19.98966631,134.63,134.48,7.43245754]
[1641669993835,4.0,134.57,134.51,27.66479]
[1641669994036,4.0,134.57,134.42,29.73535534]
[1641669994037,27.66479,134.58,134.43,1.858]
[1641669994235,5.94579519,134.55,134.44,7.43466786]
[1641669994435,17.38267468,134.55,134.41,1.858]
[1641669994635,5.94802658,134.5,134.4,143.67237949]
[1641669994835,4.0,134.54,134.37,4.0]
[1641669995035,7.43549706,134.57,134.42,7.43549706]
[1641669995238,7.43549706,134.57,134.42,11.43549706]
[1641669995438,7.43549706,134.57,134.43,5.858]
[1641669995643,34.79823538,134.58,134.46,4.0]
[1641669995839,8.0,134.56,134.51,27.66479]
[1641669996239,34.79823538,134.58,134.51,27.66479]
[1641669996439,5.945678,134.56,134.51,27.66479]
[1641669997043,31.66479,134.58,134.51,27.66479]
[1641669997243,33.60965134,134.58,134.51,1.59435021]
[1641669997845,27.66479,134.58,134.51,1.59435021]
[1641669998645,13.38069191,134.57,134.48,1.858]
[1641669998846,13.38069191,134.57,134.43,1.858]
[1641669999045,5.94718743,134.52,134.43,1.858]
[1641669999244,9.94718743,134.52,134.41,7.43604997]
[1641669999445,5.94718743,134.52,134.41,7.43604997]
[1641669999846,5.94718743,134.52,134.42,27.66479]
[1641670000647,7.13440459,134.56,134.42,27.66479]
[1641670000846,15.98608459,134.66,134.51,7.43080067]
[1641670001047,5.93950557,134.7,134.6,7.42555877]
[1641670001447,5.93950557,134.7,134.57,33.7022351]
[1641670001448,4.0,134.72,134.62,7.42473178]
[1641670001647,5.93890775,134.71,134.62,7.42473178]
[1641670001847,4.0,134.63,134.59,29.52079]
[1641670002047,4.0,134.6,134.53,1.857]
[1641670002248,5.94469229,134.58,134.48,7.43218135]
[1641670002647,5.94280602,134.62,134.48,7.43218135]
[1641670002848,11.43218135,134.63,134.48,7.43218135]
[1641670002849,5.94466813,134.58,134.48,7.43218135]
[1641670003448,5.94466813,134.58,134.47,1.858]
[1641670003449,5.94242669,134.63,134.56,7.42804085]
[1641670003751,5.94242669,134.63,134.53,7.42942051]
[1641670004549,5.94063726,134.67,134.53,1.857]
[1641670004951,8.0,134.7,134.59,7.42638595]
[1641670005154,9.93832442,134.72,134.59,7.42638595]
[1641670005555,4.0,134.71,134.62,7.42445616]
[1641670005955,5.94014903,134.68,134.59,35.0909002]
[1641670006455,5.93847301,134.72,134.61,7.42500743]
[1641670006655,5.93847301,134.72,134.63,7.42418056]
[1641670006856,4.0,134.73,134.64,1.856]
[1641670007056,4.0,134.73,134.62,7.42473178]
[1641670007354,4.0,134.72,134.62,7.42473178]
[1641670007856,4.0,134.72,134.63,27.66479]
[1641670008059,5.93822083,134.73,134.63,27.66479]
[1641670008258,4.0,134.67,134.63,27.66479]
[1641670008457,4.0,134.66,134.53,1.856]
[1641670008657,9.94124892,134.66,134.54,7.42886858]
[1641670008858,4.0,134.63,134.54,7.42886858]
[1641670009157,5.94264839,134.63,134.54,7.42886858]
[1641670009559,9.94037143,134.68,134.56,7.42776499]
[1641670009758,5.94185924,134.64,134.55,7.42831674]
[1641670009959,27.66479,134.63,134.56,27.66479]
[1641670010560,5.94185924,134.64,134.56,19.21814306]
[1641670011159,5.9401542,134.68,134.58,7.4269375]
[1641670011960,5.9401542,134.68,134.59,27.66479]
[1641670012159,4.0,134.66,134.59,27.66479]
[1641670012360,4.0,134.65,134.59,27.66479]
[1641670012559,4.0,134.65,134.49,4.0]
[1641670012560,4.0,134.6,134.5,1.857]
[1641670012759,4.0,134.6,134.49,7.43190517]
[1641670012959,34.60680067,134.66,134.51,7.43080067]
[1641670013162,4.0,134.59,134.49,1.857]
[1641670013361,11.43218135,134.63,134.48,7.43218135]
[1641670013561,4.0,134.63,134.52,7.43024854]
[1641670013860,4.0,134.63,134.52,27.66479]
[1641670014059,4.0,134.62,134.52,27.66479]
[1641670014260,7.43218135,134.63,134.48,7.43218135]
[1641670014261,4.0,134.59,134.48,7.43218135]
[1641670014462,4.0,134.58,134.48,7.43218135]
[1641670014661,4.0,134.52,134.42,1.858]
[1641670014862,20.0,134.57,134.36,73.2635]
[1641670015062,4.0,134.51,134.38,7.43770919]
[1641670015261,7.43770919,134.53,134.38,7.43770919]
[1641670015462,4.0,134.5,134.38,7.43770919]
[1641670015663,4.0,134.48,134.38,7.43770919]
[1641670015863,31.66479,134.5,134.41,27.66479]
[1641670016263,31.66479,134.5,134.39,27.66479]
[1641670016462,4.0,134.46,134.38,7.43770919]
[1641670016664,4.0,134.39,134.33,1.859]
[1641670016864,4.0,134.41,134.31,7.44158357]
[1641670017062,4.0,134.43,134.3,7.44241432]
[1641670017262,4.0,134.44,134.33,7.44047619]
[1641670017463,7.44047619,134.48,134.33,7.44047619]
[1641670017663,4.0,134.45,134.33,7.44047619]
[1641670017864,27.66479,134.42,134.35,27.66479]
[1641670018063,27.66479,134.44,134.35,27.66479]
[1641670018265,4.0,134.43,134.35,27.66479]
[1641670018464,5.95194707,134.41,134.35,27.66479]
[1641670018663,5.95194707,134.41,134.33,27.66479]
[1641670018664,4.0,134.39,134.3,7.44241432]
[1641670019267,5.95194707,134.41,134.3,7.44241432]
[1641670019465,7.1407343,134.44,134.33,7.44047619]
[1641670019670,22.96385243,134.48,134.33,7.44047619]
[1641670019865,27.66479,134.46,134.36,27.66479]
[1641670020065,5.95095959,134.44,134.36,27.66479]
[1641670020465,4.0,134.43,134.36,27.66479]
[1641670020668,4.0,134.4,134.34,27.66479]
[1641670020868,5.428,134.4,134.27,7.44407638]
[1641670021068,13.39998165,134.38,134.24,7.44573918]
[1641670021467,4.0,134.37,134.25,4.23167118]
[1641670021667,5.95509629,134.34,134.25,4.23167118]
[1641670021867,5.95509629,134.34,134.25,31.89646118]
[1641670022268,5.95605577,134.32,134.25,31.89646118]
[1641670022469,5.95605577,134.32,134.25,27.66479]
[1641670022769,5.95747307,134.29,134.2,1.861]
[1641670022969,5.95747307,134.29,134.18,22.97244324]
[1641670023170,5.95747307,134.29,134.21,7.44740272]
[1641670023770,5.95747307,134.29,134.22,4.23299014]
[1641670024169,7.1470373,134.33,134.27,11.44407638]
[1641670024369,15.52337624,134.39,134.27,11.44407638]
[1641670024570,15.52337624,134.39,134.32,7.44130669]
[1641670024974,8.0,134.43,134.32,7.44130669]
[1641670025173,15.52337624,134.46,134.32,14.42930669]
[1641670025373,15.52337624,134.46,134.32,20.28930669]
[1641670025672,15.52337624,134.46,134.39,7.43715603]
[1641670025873,15.52337624,134.46,134.4,7.43687949]
[1641670026075,15.52337624,134.46,134.43,27.66479]
[1641670026476,5.19406321,134.48,134.43,27.66479]
[1641670026974,5.19406321,134.48,134.47,11.43245754]
[1641670027174,15.52337624,134.51,134.47,16.19345754]
[1641670027376,40.15959948,134.54,134.47,20.19345754]
[1641670027576,5.18809961,134.55,134.47,16.19345754]
[1641670027977,5.18809961,134.55,134.52,27.66479]
[1641670028578,9.94441219,134.59,134.52,27.66479]
[1641670028777,5.94441219,134.59,134.52,27.66479]
[1641670029278,4.0,134.55,134.46,1.857]
[1641670029477,17.38174344,134.56,134.43,4.0]
[1641670029676,5.94703625,134.53,134.41,7.43604997]
[1641670030078,5.94703625,134.53,134.44,27.66479]
[1641670030880,7.13465111,134.56,134.44,27.66479]
[1641670031280,7.13465111,134.56,134.48,7.43245754]
[1641670031681,15.52337624,134.57,134.51,11.43080067]
[1641670031880,15.52337624,134.6,134.49,7.43190517]
[1641670032081,15.52337624,134.6,134.54,27.66479]
[1641670032883,57.06729797,134.63,134.54,27.66479]
[1641670032884,21.89180258,134.62,134.54,27.66479]
[1641670033084,17.89180258,134.62,134.54,27.66479]
[1641670033284,5.94401422,134.59,134.49,7.43190517]
[1641670033482,5.94401422,134.59,134.46,71.3045]
[1641670033684,5.94586154,134.55,134.46,71.3045]
[1641670033983,5.94596909,134.55,134.47,27.66479]
[1641670034285,4.0,134.49,134.38,7.43770919]
[1641670034483,5.94924958,134.48,134.38,7.43770919]
[1641670035083,5.95019698,134.45,134.38,7.43770919]
[1641670035283,5.95019698,134.45,134.39,4.0]
[1641670035483,7.13763809,134.5,134.39,4.0]
[1641670035685,7.13763809,134.5,134.41,7.43632645]
[1641670035984,7.13763809,134.5,134.44,27.66479]
[1641670036684,7.1361464,134.53,134.45,7.43383883]
[1641670036886,13.08290002,134.53,134.44,35.09945786]
[1641670037085,13.08290002,134.53,134.44,27.66479]
[1641670037485,5.94806242,134.5,134.44,27.66479]
[1641670037688,5.94806242,134.5,134.39,7.43715603]
[1641670037885,5.94940013,134.47,134.39,7.43715603]
[1641670038888,22.65952264,134.53,134.4,4.0]
[1641670039087,22.65952264,134.53,134.45,7.43383883]
[1641670039286,22.65952264,134.53,134.43,7.43494424]
[1641670039986,7.1361464,134.53,134.45,27.66479]
[1641670040386,7.13517199,134.55,134.45,27.66479]
[1641670040687,5.94587772,134.55,134.48,4.0]
[1641670040887,15.52337624,134.57,134.49,4.0]
[1641670041088,15.52337624,134.57,134.52,11.43024854]
[1641670041386,15.52337624,134.57,134.53,4.0]
[1641670041588,15.52337624,134.57,134.52,11.43024854]
[1641670041887,40.15959948,134.6,134.52,11.43024854]
[1641670042092,21.46608037,134.62,134.56,27.66479]
[1641670042491,15.52337624,134.62,134.56,33.92879]
[1641670043089,21.46517378,134.64,134.56,33.92879]
[1641670043290,2.37790038,134.61,134.56,33.92879]
[1641670044289,2.37790038,134.63,134.56,33.92879]
[1641670045291,2.37790038,134.63,134.57,4.0]
[1641670045493,9.8165045,134.66,134.62,7.42445616]
[1641670045697,35.83959948,134.67,134.62,11.42445616]
[1641670045896,4.0,134.72,134.62,11.42445616]
[1641670046096,4.0,134.74,134.69,27.66479]
[1641670046297,14.25946977,134.75,134.69,27.66479]
[1641670046497,21.11096345,134.73,134.69,27.66479]
[1641670047297,21.11096345,134.74,134.69,31.66479]
[1641670047796,21.11096345,134.74,134.69,35.08538958]
[1641670047996,65.16887073,134.8,134.73,27.66479]
[1641670048197,4.0,134.77,134.69,27.66479]
[1641670048398,5.9355352,134.79,134.69,27.66479]
[1641670048598,21.11096345,134.76,134.69,27.66479]
[1641670048799,21.11096345,134.76,134.69,31.66479]
[1641670049099,21.11096345,134.76,134.7,1.855]
[1641670049301,21.11096345,134.82,134.7,1.855]
[1641670049500,25.11096345,134.82,134.69,29.51979]
[1641670049700,21.11096345,134.82,134.69,29.51979]
[1641670049900,4.0,134.74,134.69,1.855]
[1641670050101,27.66479,134.72,134.64,27.66479]
[1641670050501,4.0,134.71,134.64,27.66479]
[1641670050700,5.9396275,134.69,134.64,27.66479]
[1641670050900,27.66479,134.72,134.64,27.66479]
[1641670051301,34.79009264,134.74,134.64,27.66479]
[1641670051500,7.12530264,134.74,134.64,31.66479]
[1641670051702,21.11005688,134.73,134.66,4.0]
[1641670051901,21.11005688,134.73,134.64,27.66479]
[1641670052302,5.93913685,134.7,134.64,27.66479]
[1641670052700,5.93913685,134.7,134.58,1.856]
[1641670052901,4.0,134.68,134.57,7.42721331]
[1641670053200,4.0,134.65,134.56,6.264]
[1641670053400,17.37671364,134.61,134.56,6.264]
[1641670053800,5.94315111,134.61,134.56,6.264]
[1641670054002,48.77484688,134.6,134.56,6.264]
[1641670054201,21.11005688,134.6,134.56,6.264]
[1641670054604,5.94315111,134.61,134.56,6.264]
[1641670054803,5.94315111,134.61,134.56,10.264]
[1641670055002,8.0,134.69,134.6,4.0]
[1641670055202,8.0,134.69,134.63,4.0]
[1641670055502,8.55139107,134.72,134.62,4.0]
[1641670055702,8.55139107,134.72,134.64,7.42362941]
[1641670055903,4.0,134.71,134.57,5.856]
[1641670056102,4.0,134.68,134.61,7.42528309]
[1641670056302,9.94019173,134.68,134.61,7.42528309]
[1641670056502,4.0,134.67,134.56,8.12]
[1641670056704,9.94019173,134.68,134.57,7.42721331]
[1641670056904,5.94019173,134.68,134.59,7.42638595]
[1641670057203,4.0,134.7,134.58,4.0]
[1641670057403,4.0,134.7,134.59,1.856]
[1641670057802,4.0,134.7,134.59,9.2821102]
[1641670058005,21.11405942,134.69,134.63,27.66479]
[1641670058203,25.11405942,134.69,134.63,27.66479]
[1641670058404,5.94106259,134.66,134.61,27.66479]
[1641670058604,9.94106259,134.66,134.61,27.66479]
[1641670058807,5.94106259,134.66,134.56,6.264]
[1641670059406,5.9417181,134.65,134.56,6.264]
[1641670059606,27.05577752,134.65,134.56,6.264]
[1641670060005,5.94270812,134.62,134.56,6.264]
[1641670060205,5.94270812,134.62,134.55,35.09338265]
[1641670060405,4.0,134.61,134.55,27.66479]
[1641670060605,4.0,134.6,134.53,27.66479]
[1641670061209,9.9444858,134.58,134.53,27.66479]
[1641670061405,4.0,134.54,134.44,143.2448915]
[1641670061606,4.0,134.54,134.42,1.858]
[1641670061807,5.94798267,134.5,134.42,1.858]
[1641670062108,7.13508597,134.55,134.46,35.09807626]
[1641670062706,7.13508597,134.55,134.46,27.66479]
[1641670063107,9.94745609,134.52,134.46,27.66479]
[1641670063312,4.0,134.5,134.4,7.43660296]
[1641670063508,5.94913661,134.48,134.4,7.43660296]
[1641670063909,5.94913661,134.48,134.41,4.22702733]
[1641670064108,27.66479,134.49,134.41,4.22702733]
[1641670064308,27.66479,134.49,134.41,11.6630773]
[1641670064608,31.66479,134.51,134.41,11.6630773]
[1641670064807,5.94851034,134.49,134.42,4.22702733]
[1641670065007,9.94851034,134.49,134.42,4.22702733]
[1641670065208,4.0,134.48,134.42,4.22702733]
[1641670065409,4.0,134.48,134.4,27.66479]
[1641670065410,9.94851034,134.49,134.4,27.66479]
[1641670065608,5.94851034,134.49,134.4,27.66479]
[1641670065808,4.0,134.45,134.38,27.66479]
[1641670066009,9.94984311,134.46,134.35,7.43936914]
[1641670066209,37.61463311,134.46,134.36,27.66479]
[1641670066409,33.61463311,134.46,134.36,27.66479]
[1641670066909,5.94984311,134.46,134.36,35.10360574]
[1641670067111,5.94984311,134.46,134.37,4.22806032]
[1641670068209,5.94984311,134.46,134.39,27.66479]
[1641670068611,4.0,134.41,134.37,4.22806032]
[1641670068812,5.9531987,134.39,134.37,4.22806032]
[1641670069011,5.9531987,134.39,134.3,78.95103738]
[1641670069312,5.9531987,134.39,134.3,11.44213738]
[1641670069511,5.9531987,134.39,134.31,4.22961026]
[1641670069715,5.9514252,134.43,134.31,4.22961026]
[1641670069913,9.9514252,134.43,134.31,4.22961026]
[1641670070112,37.6162152,134.43,134.33,27.66479]
[1641670070512,33.6162152,134.43,134.33,27.66479]
[1641670070713,33.6162152,134.43,134.34,4.22961026]
[1641670071116,7.44296826,134.44,134.34,4.22961026]
[1641670071315,7.1396736,134.46,134.34,15.66980966]
[1641670071513,7.1396736,134.46,134.34,13.52980966]
[1641670071716,7.1396736,134.46,134.36,4.0]
[1641670071914,7.1396736,134.46,134.37,5.859]
[1641670072114,7.1396736,134.46,134.4,27.66479]
[1641670072317,7.1396736,134.46,134.4,35.10139296]
[1641670072614,7.1376153,134.5,134.42,7.43549706]
[1641670073016,7.1376153,134.5,134.42,1.859]
[1641670073416,13.08568603,134.5,134.4,39.10166949]
[1641670073616,4.0,134.46,134.4,27.66479]
[1641670073816,5.95027148,134.45,134.38,27.66479]
[1641670074017,5.95075043,134.44,134.38,27.66479]
[1641670074919,5.95075043,134.44,134.32,71.6908]
[1641670074920,5.95218444,134.41,134.32,71.6908]
[1641670075117,4.0,134.39,134.3,1.86]
[1641670075317,5.95394205,134.37,134.33,4.22951295]
[1641670075716,5.95394205,134.37,134.3,4.22951295]
[1641670078120,4.0,134.33,134.3,4.22951295]
[1641670078319,6.513,134.37,134.3,4.22951295]
[1641670078518,6.513,134.37,134.28,10.09051295]
[1641670078720,6.513,134.37,134.28,6.09051295]
[1641670079119,6.513,134.37,134.29,4.22951295]
[1641670079320,27.66479,134.38,134.3,4.0]
[1641670079519,27.66479,134.38,134.31,1.86]
[1641670079719,27.66479,134.38,134.29,11.67220423]
[1641670079921,5.95195682,134.41,134.29,11.67220423]
[1641670080124,5.95288793,134.39,134.32,4.22951295]
[1641670080519,5.95288793,134.39,134.31,27.66479]
[1641670081123,5.95423224,134.36,134.31,27.66479]
[1641670081524,5.95557659,134.33,134.27,27.66479]
[1641670082022,5.95557659,134.33,134.28,4.23084785]
[1641670082224,5.95378983,134.37,134.31,27.66479]
[1641670082425,5.95378983,134.37,134.32,4.0]
[1641670082727,5.95115775,134.43,134.33,11.440753]
[1641670082923,5.95115775,134.43,134.34,1.86]
[1641670083124,5.95115775,134.43,134.33,15.67160085]
[1641670083325,5.95115775,134.43,134.35,4.23084785]
[1641670083925,5.95115775,134.43,134.34,4.23084785]
[1641670084126,5.95115775,134.43,134.37,27.66479]
[1641670085529,5.95258068,134.4,134.31,36.96665047]
[1641670085730,9.95258068,134.4,134.31,27.66479]
[1641670085931,5.954803,134.35,134.31,27.66479]
[1641670086130,5.95611246,134.32,134.27,15.58910182]
[1641670086331,5.95611246,134.32,134.25,27.66479]
[1641670086531,5.959186,134.25,134.19,28.6575]
[1641670087332,5.959186,134.25,134.12,213.0491]
[1641670087533,9.959186,134.25,134.13,7.45128721]
[1641670087835,5.9606928,134.22,134.12,142.6272]
[1641670088033,11.45628751,134.19,134.16,4.2338873]
[1641670088232,5.96288444,134.17,134.16,4.2338873]
[1641670088433,5.96288444,134.17,134.16,3.4338873]